bitfinex/quotes_BTCUSD_20250109
["timestamp","ask_amount","ask_price","bid_price","bid_amount"]
[1736450141301,8.52e-05,93433.0,93430.0,0.0008297]
[1736450142123,8.52e-05,93433.0,93428.0,0.20589668]
[1736450142758,8.52e-05,93433.0,93430.0,0.003]
[1736450142969,0.2141432,93433.0,93430.0,0.003]
[1736450143356,0.2141432,93433.0,93420.0,0.214085]
[1736450143560,0.214064,93430.0,93420.0,0.214085]
[1736450143700,0.214064,93430.0,93428.0,0.003]
[1736450143910,0.214064,93430.0,93416.0,0.214094]
[1736450144203,0.214066,93429.0,93416.0,0.214094]
[1736450144600,0.214066,93429.0,93416.0,0.428189]
[1736450145965,0.214066,93429.0,93419.0,0.214087]
[1736450146171,0.214066,93429.0,93419.0,0.20508698]
[1736450147169,0.214076,93425.0,93416.0,0.214094]
[1736450147801,0.214066,93429.0,93416.0,0.214094]
[1736450148154,0.10429976,93428.0,93412.0,0.01270203]
[1736450148383,0.214092,93418.0,93412.0,0.01270203]
[1736450148590,0.214099,93415.0,93412.0,0.01270203]
[1736450148794,0.428198,93415.0,93401.0,0.21413]
[1736450148998,0.214102,93413.0,93401.0,0.21413]
[1736450149425,0.214102,93413.0,93397.0,0.214137]
[1736450150043,0.10429976,93412.0,93397.0,0.214137]
[1736450150906,0.214101,93414.0,93393.0,0.0766]
[1736450151116,0.214089,93419.0,93388.0,0.20526386]
[1736450151332,0.21413,93402.0,93391.0,0.00049476]
[1736450151550,1.28166773,93402.0,93391.0,0.00049476]
[1736450151977,1.06753773,93402.0,93392.0,0.214151]
[1736450152430,1.06753773,93402.0,93392.0,0.28531568]
[1736450153248,1.06853773,93402.0,93392.0,0.28531568]
[1736450153682,1.06853773,93402.0,93393.0,0.214148]
[1736450154527,1.06853773,93402.0,93392.0,0.214151]
[1736450154996,0.21413,93401.0,93391.0,0.00049476]
[1736450155617,0.214148,93393.0,93392.0,0.001]
[1736450155827,0.214148,93393.0,93391.0,0.00049476]
[1736450156246,0.214162,93387.0,93377.0,0.06923514]
[1736450156671,0.428325,93387.0,93377.0,0.06923514]
[1736450157237,0.214162,93387.0,93377.0,0.06923514]
[1736450157438,0.214162,93387.0,93378.0,0.214183]
[1736450158173,0.3472633,93390.0,93378.0,0.214183]
[1736450158372,0.214157,93390.0,93378.0,0.214183]
[1736450159125,0.214157,93390.0,93378.0,0.216183]
[1736450159544,0.00049436,93393.0,93390.0,0.214154]
[1736450159748,0.00049436,93393.0,93392.0,0.214151]
[1736450159947,0.00049436,93393.0,93392.0,0.31845076]
[1736450160129,0.00049436,93393.0,93392.0,0.34145076]
[1736450161148,0.00049436,93393.0,93392.0,0.33245074]
[1736450161769,0.00049436,93393.0,93392.0,0.30945074]
[1736450162504,0.00149436,93393.0,93392.0,0.30945074]
[1736450162908,0.00049436,93393.0,93392.0,0.20515098]
[1736450163290,0.00049436,93393.0,93392.0,0.21415098]
[1736450163486,0.00049436,93393.0,93392.0,0.20515098]
[1736450163917,0.00049436,93393.0,93392.0,0.21315098]
[1736450164111,0.00049436,93393.0,93392.0,0.20515098]
[1736450165819,0.00049436,93393.0,93392.0,0.21115098]
[1736450166125,0.00049436,93393.0,93392.0,0.19615096]
[1736450166322,0.00049436,93393.0,93392.0,0.20315096]
[1736450167436,0.00049436,93393.0,93392.0,0.28071019]
[1736450167650,0.00049436,93393.0,93392.0,0.38500995]
[1736450169459,0.00049436,93393.0,93392.0,0.30745072]
[1736450171087,0.00049436,93393.0,93392.0,0.2984507]
[1736450175786,0.00049436,93393.0,93392.0,0.4484507]
[1736450176015,8.52e-05,93433.0,93427.0,0.21407]
[1736450176340,8.52e-05,93433.0,93427.0,0.42814]
[1736450177434,8.52e-05,93433.0,93427.0,0.42914]
[1736450177692,8.52e-05,93433.0,93427.0,0.42814]
[1736450178131,8.52e-05,93433.0,93427.0,0.46280766]
[1736450178800,8.52e-05,93433.0,93429.0,0.214066]
[1736450179096,8.52e-05,93433.0,93430.0,0.25429976]
[1736450180243,8.52e-05,93433.0,93429.0,0.218066]
[1736450180375,8.52e-05,93433.0,93429.0,0.214066]
[1736450180799,8.52e-05,93433.0,93430.0,0.006]
[1736450181105,8.52e-05,93433.0,93429.0,0.20706598]
[1736450181510,8.52e-05,93433.0,93429.0,0.21306598]
[1736450181716,8.52e-05,93433.0,93429.0,0.20706598]
[1736450183314,8.52e-05,93433.0,93430.0,0.009]
[1736450183513,8.52e-05,93433.0,93429.0,0.21006598]
[1736450183891,8.52e-05,93433.0,93429.0,0.21606598]
[1736450184059,8.52e-05,93433.0,93429.0,0.21306598]
[1736450184284,8.52e-05,93433.0,93429.0,0.20906598]
[1736450184484,8.52e-05,93433.0,93430.0,0.006]
[1736450184826,8.52e-05,93433.0,93429.0,0.20906598]
[1736450185222,8.52e-05,93433.0,93430.0,0.10536996]
[1736450186051,8.52e-05,93433.0,93429.0,0.20406596]
[1736450186384,8.52e-05,93433.0,93430.0,0.002]
[1736450186848,8.52e-05,93433.0,93430.0,0.006]
[1736450187210,8.52e-05,93433.0,93429.0,0.216064]
[1736450187408,8.52e-05,93433.0,93429.0,0.222064]
[1736450187612,8.52e-05,93433.0,93429.0,0.220064]
[1736450187795,8.52e-05,93433.0,93429.0,0.214064]
[1736450187994,8.52e-05,93433.0,93430.0,0.001]
[1736450188686,8.52e-05,93433.0,93430.0,0.003]
[1736450189857,8.52e-05,93433.0,93430.0,0.002]
[1736450191044,8.52e-05,93433.0,93430.0,0.003]
[1736450191224,8.52e-05,93433.0,93427.0,0.20806798]
[1736450191433,8.52e-05,93433.0,93425.0,0.214074]
[1736450191939,8.52e-05,93433.0,93429.0,0.214065]
[1736450194778,8.52e-05,93433.0,93429.0,0.215065]
[1736450195182,0.2122174,93438.0,93429.0,0.215065]
[1736450196160,0.2122174,93438.0,93429.0,0.20606498]
[1736450196362,0.2132174,93438.0,93429.0,0.20606498]
[1736450196567,0.2132174,93438.0,93429.0,0.20506498]
[1736450196768,0.2152174,93438.0,93429.0,0.20506498]
[1736450202274,0.2152174,93438.0,93429.0,0.19606496]
[1736450202482,0.003,93438.0,93429.0,0.41013096]
[1736450203280,0.003,93438.0,93432.0,0.214058]
[1736450204053,0.214034,93443.0,93432.0,0.214058]
[1736450204442,0.003,93438.0,93432.0,0.214058]
[1736450205270,0.003,93438.0,93437.0,0.292847]
[1736450205482,0.003,93438.0,93437.0,0.44474676]
[1736450205732,0.002,93438.0,93437.0,0.44474676]
[1736450205973,0.002,93438.0,93437.0,0.43574674]
[1736450206643,0.3471013,93460.0,93449.0,0.214019]
[1736450206840,0.00023351,93453.0,93449.0,0.214019]
[1736450208045,0.00123351,93453.0,93449.0,0.428038]
[1736450208454,0.00123351,93453.0,93449.0,0.214019]
[1736450209088,0.00223351,93453.0,93449.0,0.214019]
[1736450209987,0.00223351,93453.0,93437.0,0.340446]
[1736450210155,0.1331063,93450.0,93437.0,0.340446]
[1736450210706,0.00223351,93453.0,93437.0,0.340446]
[1736450211131,0.00223351,93453.0,93437.0,0.33144598]
[1736450211329,0.00123351,93453.0,93437.0,0.33144598]
[1736450211538,0.00114001,93453.0,93437.0,0.33144598]
[1736450211755,0.214013,93452.0,93437.0,0.33144598]
[1736450211921,0.214013,93452.0,93437.0,0.54549298]
[1736450213345,0.215013,93452.0,93437.0,0.54549298]
[1736450214354,0.001,93452.0,93438.0,0.0767548]
[1736450214607,0.001,93452.0,93448.0,0.214021]
[1736450214788,0.001,93452.0,93448.0,0.428043]
[1736450216069,3.81824001,93453.0,93448.0,0.20502098]
[1736450216278,3.81824001,93453.0,93452.0,0.214013]
[1736450216791,3.81824001,93453.0,93449.0,0.21402]
[1736450217745,3.81824001,93453.0,93452.0,0.004]
[1736450217952,3.81824001,93453.0,93449.0,0.21402]
[1736450218924,3.81824001,93453.0,93452.0,0.001]
[1736450219385,3.81824001,93453.0,93449.0,0.21502]
[1736450219608,3.81824001,93453.0,93449.0,0.21402]
[1736450219999,3.81824001,93453.0,93449.0,0.21602]
[1736450220163,3.81824001,93453.0,93449.0,0.21502]
[1736450220541,3.81824001,93453.0,93449.0,0.21702]
[1736450220789,3.81824001,93453.0,93449.0,0.21502]
[1736450221317,3.81824001,93453.0,93449.0,0.20801998]
[1736450224659,4.88577774,93453.0,93449.0,0.003]
[1736450224874,0.428027,93452.0,93449.0,0.003]
[1736450225081,0.214013,93452.0,93449.0,0.003]
[1736450225489,0.214013,93452.0,93449.0,0.002]
[1736450225695,0.428027,93452.0,93449.0,0.002]
[1736450226117,0.214013,93452.0,93431.0,0.20705898]
[1736450226354,0.214031,93445.0,93431.0,0.20705898]
[1736450226556,0.214031,93445.0,93429.0,0.0779]
[1736450226760,0.214031,93445.0,93432.0,0.214059]
[1736450227203,0.003,93452.0,93433.0,0.10536991]
[1736450227377,0.003,93452.0,93445.0,0.214028]
[1736450227529,4.88577774,93453.0,93445.0,0.214028]
[1736450227724,4.88577774,93453.0,93446.0,0.0791]
[1736450227974,4.88577774,93453.0,93451.0,0.214013]
[1736450228385,0.003,93452.0,93451.0,0.214013]
[1736450228793,4.88577774,93453.0,93451.0,0.214013]
[1736450229823,4.88577774,93453.0,93451.0,0.215013]
[1736450230676,4.88577774,93453.0,93451.0,0.217013]
[1736450231106,4.88577774,93453.0,93439.0,0.01093677]
[1736450231107,4.88577774,93453.0,93440.0,0.20803998]
[1736450231314,0.1331063,93450.0,93440.0,0.20803998]
[1736450231743,0.1331063,93450.0,93431.0,0.214059]
[1736450231948,0.1331063,93441.0,93431.0,0.214059]
[1736450232157,0.214041,93440.0,93428.0,0.214066]
[1736450232774,0.428082,93440.0,93428.0,0.214066]
[1736450232973,0.214049,93437.0,93425.0,0.214075]
[1736450233188,0.1331063,93435.0,93425.0,0.214075]
[1736450234548,0.1331063,93435.0,93428.0,0.214066]
[1736450234972,0.1331063,93435.0,93418.0,0.0485]
[1736450234973,0.001,93440.0,93418.0,0.0485]
[1736450235182,0.001,93440.0,93437.0,0.214045]
[1736450235381,1.06753773,93452.0,93442.0,0.214034]
[1736450235759,1.20064403,93452.0,93442.0,0.214034]
[1736450235967,0.214015,93451.0,93442.0,0.214034]
[1736450236168,0.214015,93451.0,93442.0,0.20503398]
[1736450237926,0.216015,93451.0,93442.0,0.20503398]
[1736450238295,0.216015,93451.0,93438.0,0.214045]
[1736450238786,0.21402,93449.0,93438.0,0.214045]
[1736450240802,0.001,93451.0,93434.0,0.214053]
[1736450240999,0.1331063,93444.0,93430.0,0.20506098]
[1736450241165,0.214042,93440.0,93430.0,0.20506098]
[1736450242396,0.10529976,93451.0,93450.0,0.2247997]
[1736450243032,0.10429976,93451.0,93450.0,0.2247997]
[1736450243400,0.31831476,93451.0,93450.0,0.2247997]
[1736450244452,0.32531476,93451.0,93450.0,0.2257997]
[1736450246114,0.31831476,93451.0,93450.0,0.21579968]
[1736450246318,0.32331476,93451.0,93450.0,0.21579968]
[1736450246753,0.31831476,93451.0,93450.0,0.21579968]
[1736450246980,0.32431476,93451.0,93450.0,0.21579968]
[1736450248329,0.32231476,93451.0,93450.0,0.21579968]
[1736450248778,0.32431476,93451.0,93450.0,0.21579968]
[1736450249806,0.50481476,93451.0,93450.0,0.21579968]
[1736450250026,0.85392553,93451.0,93450.0,0.19650318]
[1736450250234,0.85436977,93451.0,93450.0,0.1939007]
[1736450250645,0.85436977,93451.0,93450.0,0.17838214]
[1736450250864,0.85036977,93451.0,93450.0,0.17838214]
[1736450251087,0.85736977,93451.0,93450.0,0.17038212]
[1736450251332,0.85536977,93451.0,93450.0,0.17038212]
[1736450251753,0.85936977,93451.0,93450.0,0.17038212]
[1736450252160,0.85536977,93451.0,93450.0,0.17038212]
[1736450252356,0.84836977,93451.0,93450.0,0.16938212]
[1736450252515,0.85436977,93451.0,93450.0,0.17038212]
[1736450252695,0.86336977,93451.0,93450.0,0.17138212]
[1736450252917,0.85436977,93451.0,93450.0,0.17038212]
[1736450253431,0.86336977,93451.0,93450.0,0.17138212]
[1736450253557,0.88014564,93451.0,93450.0,0.17138212]
[1736450254950,1.0724107,93451.0,93450.0,0.17138212]
[1736450256107,1.0724107,93451.0,93450.0,0.1623821]
[1736450256541,0.88014564,93451.0,93450.0,0.1623821]
[1736450257604,0.86336977,93451.0,93450.0,0.1623821]
[1736450258211,0.64935477,93451.0,93450.0,0.1623821]
[1736450258719,0.86336977,93451.0,93450.0,0.1623821]
[1736450259436,0.86336977,93451.0,93450.0,0.1500221]
[1736450259644,0.86336977,93451.0,93450.0,0.1445741]
[1736450259861,0.214102,93413.0,93412.0,0.0001704]
[1736450260068,1.28163973,93413.0,93412.0,0.0001704]
[1736450261151,1.28263973,93413.0,93412.0,0.0001704]
[1736450261773,1.28163973,93413.0,93412.0,0.0001704]
[1736450261926,1.28363973,93413.0,93412.0,0.0001704]
[1736450262131,1.30049786,93413.0,93403.0,0.06914078]
[1736450262336,1.42786973,93413.0,93403.0,0.06914078]
[1736450262536,1.42586973,93413.0,93403.0,0.06914078]
[1736450262763,1.21176773,93413.0,93403.0,0.06914078]
[1736450262962,0.214105,93412.0,93403.0,0.06914078]
[1736450263950,0.10429976,93412.0,93400.0,0.0466704]
[1736450264161,0.21413,93401.0,93400.0,0.0001704]
[1736450264770,1.06753773,93402.0,93400.0,0.0001704]
[1736450265188,1.06753773,93402.0,93401.0,0.0778]
[1736450266060,1.06753773,93402.0,93401.0,0.06879998]
[1736450266271,0.10929976,93412.0,93401.0,0.06879998]
[1736450266272,0.005,93412.0,93401.0,0.06879998]
[1736450266444,0.1331063,93411.0,93401.0,0.06879998]
[1736450266878,0.1331063,93411.0,93401.0,0.28292998]
[1736450267081,0.1331063,93411.0,93402.0,0.214128]
[1736450267500,1.06753773,93415.0,93402.0,0.214128]
[1736450267631,0.004,93411.0,93405.0,0.214119]
[1736450267837,0.004,93411.0,93402.0,0.214128]
[1736450268629,0.004,93411.0,93405.0,0.001]
[1736450269624,1.06753773,93415.0,93405.0,0.001]
[1736450270599,1.06753773,93415.0,93402.0,0.214128]
[1736450270811,0.1331063,93412.0,93402.0,0.214128]
[1736450271009,0.1331063,93412.0,93402.0,0.20612798]
[1736450271213,0.00010047,93413.0,93411.0,0.214106]
[1736450271415,0.00010047,93413.0,93412.0,0.0798]
[1736450271638,0.00010047,93413.0,93412.0,0.126]
[1736450272069,0.00010047,93413.0,93412.0,0.28572246]
[1736450272294,0.1331063,93440.0,93412.0,0.28572246]
[1736450272295,1.06753773,93439.0,93438.0,0.1275]
[1736450272507,1.06753773,93444.0,93438.0,0.1275]
[1736450274006,1.06753773,93444.0,93438.0,0.1295]
[1736450274523,1.06753773,93444.0,93438.0,0.1315]
[1736450274929,1.06753773,93444.0,93438.0,0.1295]
[1736450275108,1.06753773,93444.0,93438.0,0.1305]
[1736450276061,1.06753773,93444.0,93438.0,0.12149998]
[1736450281107,1.06753773,93444.0,93438.0,0.11249996]
[1736450283651,0.214034,93443.0,93438.0,0.11249996]
[1736450284497,0.214034,93443.0,93438.0,0.11149996]
[1736450284921,0.42793919,93443.0,93438.0,0.11049996]
[1736450285132,0.42793919,93443.0,93438.0,0.11249996]
[1736450286205,0.42793919,93443.0,93438.0,0.10349994]
[1736450289382,0.214043,93440.0,93438.0,0.0829]
[1736450290543,0.214043,93440.0,93438.0,0.0819]
[1736450290686,0.214043,93440.0,93438.0,0.0799]
[1736450290889,0.214043,93440.0,93438.0,0.0819]
[1736450291114,0.215043,93440.0,93438.0,0.07489998]
[1736450292312,0.215043,93440.0,93438.0,0.004]
[1736450292897,0.214043,93440.0,93438.0,0.004]
[1736450293127,0.214043,93440.0,93438.0,0.002]
[1736450293653,0.001,93440.0,93417.0,0.259393]
[1736450293854,0.213072,93427.0,93417.0,0.259393]
[1736450294115,0.213072,93427.0,93418.0,0.08]
[1736450294493,0.212072,93427.0,93418.0,0.08]
[1736450294716,0.214065,93430.0,93417.0,0.214093]
[1736450294717,0.3471713,93430.0,93417.0,0.214093]
[1736450294904,0.1331063,93430.0,93410.0,0.0805]
[1736450295097,0.214087,93420.0,93410.0,0.0805]
[1736450295307,0.428174,93420.0,93410.0,0.0805]
[1736450295552,0.214087,93420.0,93418.0,0.002]
[1736450295734,0.21408,93423.0,93410.0,0.0805]
[1736450295874,0.214107,93411.0,93410.0,0.0805]
[1736450296082,0.213107,93411.0,93410.0,0.07149998]
[1736450296278,0.21316116,93413.0,93410.0,0.07149998]
[1736450296485,0.21316116,93413.0,93410.0,0.07164832]
[1736450296901,0.21316116,93413.0,93410.0,0.07464832]
[1736450297456,0.214098,93416.0,93410.0,0.07164832]
[1736450297692,0.214098,93416.0,93410.0,0.07564832]
[1736450298402,0.214098,93416.0,93410.0,0.07364832]
[1736450298850,0.214098,93416.0,93410.0,0.07564832]
[1736450299065,0.214098,93416.0,93410.0,0.00414834]
[1736450299278,0.214103,93413.0,93410.0,0.00414834]
[1736450299483,1.49574373,93413.0,93410.0,0.00214834]
[1736450299687,1.49574373,93413.0,93410.0,0.00314834]
[1736450300119,1.49574373,93413.0,93410.0,0.00014834]
[1736450300735,0.214107,93411.0,93410.0,0.00014834]
[1736450301146,0.214128,93402.0,93399.0,0.06848912]
[1736450301353,0.214128,93402.0,93399.0,0.06858959]
[1736450302902,1.28166573,93402.0,93399.0,0.00010047]
[1736450303105,1.49579473,93402.0,93399.0,0.00210047]
[1736450303299,1.49579473,93402.0,93399.0,0.00410047]
[1736450303807,1.49579473,93402.0,93399.0,0.00210047]
[1736450304485,1.49579473,93402.0,93399.0,0.00410047]
[1736450304686,1.49579473,93402.0,93399.0,0.00210047]
[1736450304911,1.49579473,93402.0,93399.0,0.00310047]
[1736450305408,1.49579473,93402.0,93399.0,0.00110047]
[1736450305843,1.49579473,93402.0,93399.0,0.00210047]
[1736450306022,1.28166573,93402.0,93394.0,0.07000045]
[1736450306173,0.214144,93395.0,93394.0,0.07005861]
[1736450306805,0.214144,93395.0,93394.0,5.816e-05]
[1736450307385,0.214144,93395.0,93394.0,0.00105816]
[1736450307762,0.22507929,93395.0,93394.0,0.00105816]
[1736450307961,0.22507929,93395.0,93394.0,0.00296432]
[1736450308778,0.22507929,93395.0,93394.0,0.00096432]
[1736450309206,0.214155,93390.0,93389.0,0.0001702]
[1736450309385,1.28169273,93390.0,93389.0,0.0001702]
[1736450310174,1.28169273,93390.0,93389.0,7.639e-05]
[1736450311145,0.214176,93381.0,93380.0,0.06667637]
[1736450311564,1.33475033,93390.0,93372.0,0.0001704]
[1736450311776,0.214194,93373.0,93372.0,0.0001704]
[1736450311988,0.214194,93373.0,93372.0,0.00066476]
[1736450313973,0.24223132,93373.0,93372.0,0.00166476]
[1736450314781,0.214194,93373.0,93372.0,0.00166476]
[1736450315857,0.21403206,93373.0,93372.0,0.00066476]
[1736450316053,1.06753773,93379.0,93358.0,0.04027574]
[1736450316312,0.214215,93364.0,93358.0,0.04032523]
[1736450316724,0.214219,93362.0,93358.0,0.04032523]
[1736450317826,0.428438,93362.0,93358.0,0.04032523]
[1736450317976,0.429438,93362.0,93358.0,0.04032523]
[1736450318181,0.429438,93362.0,93358.0,4.949e-05]
[1736450318383,0.214224,93360.0,93358.0,4.949e-05]
[1736450319347,0.214224,93360.0,93358.0,0.00204949]
[1736450319765,0.214224,93360.0,93358.0,4.949e-05]
[1736450320147,0.214224,93360.0,93358.0,0.00204949]
[1736450320603,0.215224,93360.0,93358.0,4.949e-05]
[1736450321220,0.218224,93360.0,93358.0,4.949e-05]
[1736450321623,0.215224,93360.0,93358.0,4.949e-05]
[1736450322261,0.214245,93351.0,93350.0,0.06999027]
[1736450323323,0.214245,93351.0,93348.0,0.0001704]
[1736450323533,0.214245,93351.0,93350.0,0.001]
[1736450323940,0.214245,93351.0,93348.0,0.0001704]
[1736450323941,0.42849,93351.0,93348.0,0.0001704]
[1736450324281,0.42849,93351.0,93350.0,0.001]
[1736450325584,0.42849,93351.0,93348.0,0.0001704]
[1736450325790,0.214249,93349.0,93348.0,0.0001704]
[1736450325993,0.214249,93349.0,93348.0,0.0011704]
[1736450326195,0.214249,93349.0,93342.0,0.04031118]
[1736450326397,0.21426,93345.0,93342.0,0.04031118]
[1736450327143,0.214249,93349.0,93342.0,0.04031118]
[1736450327545,0.001,93345.0,93342.0,0.04231118]
[1736450327951,0.214249,93349.0,93342.0,0.04231118]
[1736450329067,0.428499,93349.0,93342.0,0.04231118]
[1736450329278,0.214258,93346.0,93342.0,0.04231118]
[1736450329484,0.214258,93346.0,93342.0,0.04031118]
[1736450330184,1.28177273,93355.0,93342.0,0.002]
[1736450330185,0.214259,93345.0,93342.0,0.002]
[1736450330386,0.214267,93342.0,93333.0,0.0466]
[1736450330625,0.214267,93342.0,93341.0,9.009e-05]
[1736450331251,0.214267,93342.0,93333.0,0.03769007]
[1736450331252,0.214284,93334.0,93333.0,0.03769007]
[1736450331522,0.214284,93334.0,93333.0,0.00014848]
[1736450331781,0.214268,93341.0,93333.0,0.00014848]
[1736450332289,0.214272,93339.0,93333.0,0.00014848]
[1736450334339,0.214272,93339.0,93333.0,0.00314848]
[1736450334921,0.214272,93339.0,93333.0,0.00114848]
[1736450335328,0.214272,93339.0,93333.0,0.00314848]
[1736450335955,0.214268,93341.0,93333.0,0.00314848]
[1736450336158,0.214268,93341.0,93332.0,0.07134846]
[1736450336517,0.214268,93341.0,93333.0,0.001]
[1736450337050,0.214268,93341.0,93332.0,0.07134846]
[1736450337259,0.214276,93338.0,93332.0,0.07134846]
[1736450337456,0.214276,93338.0,93332.0,0.07434846]
[1736450337657,0.214276,93338.0,93332.0,0.07234846]
[1736450338191,0.214276,93338.0,93333.0,0.002]
[1736450338399,0.214276,93338.0,93332.0,0.07134846]
[1736450339163,0.214286,93333.0,93325.0,0.0492]
[1736450339369,0.1331063,93335.0,93323.0,0.079]
[1736450339592,0.214295,93329.0,93323.0,0.079]
[1736450339809,0.214297,93328.0,93323.0,0.079]
[1736450340016,0.214307,93325.0,93323.0,0.079]
[1736450340211,0.214297,93328.0,93323.0,0.079]
[1736450340984,0.214297,93328.0,93323.0,0.06999998]
[1736450344002,0.1331063,93335.0,93323.0,0.06999998]
[1736450344230,0.214318,93319.0,93318.0,0.0001704]
[1736450344847,1.06753773,93327.0,93318.0,0.0001704]
[1736450345540,0.0764,93344.0,93318.0,0.0001704]
[1736450345541,0.214275,93338.0,93326.0,0.214302]
[1736450345677,0.00014824,93347.0,93345.0,0.0497]
[1736450346077,0.00014824,93347.0,93346.0,0.09529974]
[1736450346695,0.00014824,93347.0,93346.0,0.32517091]
[1736450346905,0.00014824,93347.0,93346.0,0.32409974]
[1736450347330,0.00114824,93347.0,93346.0,0.32409974]
[1736450347534,0.00014824,93347.0,93346.0,0.32509974]
[1736450347948,0.00114824,93347.0,93346.0,0.32409974]
[1736450348191,0.00114824,93347.0,93346.0,0.0788]
[1736450348819,0.00214824,93347.0,93346.0,0.0798]
[1736450349646,0.00114824,93347.0,93346.0,0.0798]
[1736450349824,0.00214824,93347.0,93346.0,0.0818]
[1736450350167,0.00014824,93347.0,93346.0,0.0788]
[1736450350372,0.00114824,93347.0,93346.0,0.0808]
[1736450350792,0.214256,93346.0,93340.0,0.082]
[1736450351018,0.00014824,93347.0,93333.0,0.214284]
[1736450351019,0.00114824,93347.0,93346.0,0.002]
[1736450351354,0.214258,93345.0,93333.0,0.07499998]
[1736450351556,0.214272,93340.0,93333.0,0.07499998]
[1736450351787,0.214272,93340.0,93328.0,0.01594256]
[1736450351983,0.1331063,93340.0,93328.0,0.01594256]
[1736450352244,0.1331063,93340.0,93327.0,0.0497]
[1736450352245,0.21428,93336.0,93327.0,0.0497]
[1736450352453,0.214297,93329.0,93318.0,0.2641884]
[1736450352658,1.06753773,93341.0,93318.0,0.2641884]
[1736450352659,0.428628,93321.0,93318.0,0.0001704]
[1736450353335,0.214318,93319.0,93318.0,0.0001704]
[1736450353607,1.48615549,93319.0,93318.0,0.0001704]
[1736450353812,1.51420129,93319.0,93318.0,0.0001704]
[1736450354222,1.5315776,93319.0,93318.0,0.0001704]
[1736450354453,1.51471947,93319.0,93318.0,0.0001704]
[1736450354667,1.51071947,93319.0,93318.0,0.0001704]
[1736450355502,1.51271947,93319.0,93318.0,0.0001704]
[1736450355726,1.66271947,93319.0,93318.0,0.0001704]
[1736450355907,1.73501947,93319.0,93318.0,0.0001704]
[1736450356119,0.1,93311.0,93277.0,0.15]
[1736450356259,0.214385,93291.0,93279.0,0.21441]
[1736450356453,0.1331063,93300.0,93280.0,0.10429976]
[1736450356659,1.06753773,93301.0,93280.0,0.10429976]
[1736450356660,0.214364,93299.0,93286.0,0.214393]
[1736450357314,0.214364,93299.0,93286.0,0.21454132]
[1736450357914,0.001,93291.0,93286.0,0.21454132]
[1736450358116,0.001,93291.0,93286.0,0.21554132]
[1736450358556,1.06753773,93301.0,93286.0,0.21554132]
[1736450359443,0.214364,93299.0,93286.0,0.21554132]
[1736450359883,0.214374,93295.0,93286.0,0.00014832]
[1736450360092,0.214374,93295.0,93286.0,0.00114832]
[1736450360403,0.214383,93291.0,93286.0,0.00114832]
[1736450360607,0.214383,93291.0,93286.0,0.00014832]
[1736450361045,0.214378,93294.0,93286.0,0.00114832]
[1736450361255,0.214364,93299.0,93287.0,0.214391]
[1736450361463,0.214364,93299.0,93276.0,0.0828]
[1736450361464,0.00014813,93299.0,93296.0,0.214369]
[1736450361669,0.00014813,93299.0,93298.0,0.214366]
[1736450361879,0.00014813,93299.0,93298.0,0.31866576]
[1736450363833,0.00014813,93299.0,93298.0,0.32166576]
[1736450364218,0.00014813,93299.0,93298.0,0.32266576]
[1736450366148,0.00014813,93299.0,93298.0,0.31366574]
[1736450369063,0.00014813,93299.0,93298.0,0.49577707]
[1736450369267,0.00014813,93299.0,93298.0,0.46366574]
[1736450369987,0.00014813,93299.0,93298.0,0.46066574]
[1736450370325,0.00114813,93299.0,93298.0,0.46666574]
[1736450370473,0.00214813,93299.0,93298.0,0.46866574]
[1736450371050,0.00214813,93299.0,93298.0,0.45966572]
[1736450376172,0.00214813,93299.0,93298.0,0.4506657]
[1736450382136,0.00214813,93299.0,93298.0,0.44166568]
[1736450382975,0.00214813,93299.0,93298.0,0.44967178]
[1736450383640,0.00214813,93299.0,93298.0,1.13357062]
[1736450383853,0.00214813,93299.0,93298.0,1.33357062]
[1736450384056,0.00214813,93299.0,93298.0,1.13357062]
[1736450384267,0.00214813,93299.0,93298.0,1.09177178]
[1736450384883,0.00214813,93299.0,93298.0,1.1045767]
[1736450385060,0.00214813,93299.0,93298.0,1.0895767]
[1736450386123,0.00214813,93299.0,93298.0,1.08057668]
[1736450386733,0.00214813,93299.0,93298.0,1.06777176]
[1736450388249,0.00214813,93299.0,93298.0,0.52587176]
[1736450388448,0.00214813,93299.0,93298.0,0.65317152]
[1736450389355,0.00214813,93299.0,93298.0,0.54887176]
[1736450391064,0.00214813,93299.0,93298.0,0.53987174]
[1736450391415,0.00214813,93299.0,93298.0,0.59387186]
[1736450391609,0.19713345,93335.0,93301.0,0.15]
[1736450391752,0.21429,93332.0,93322.0,0.21431]
[1736450393962,0.22029,93332.0,93322.0,0.21431]
[1736450394181,0.008,93332.0,93325.0,0.214303]
[1736450394683,0.008,93332.0,93322.0,0.21431]
[1736450395234,0.19728193,93335.0,93322.0,0.21431]
[1736450395438,0.00014848,93335.0,93330.0,0.214291]
[1736450395644,0.002,93332.0,93331.0,0.10537109]
[1736450395843,0.04745009,93356.0,93331.0,0.10429976]
[1736450396039,0.14408521,93359.0,93344.0,0.20525898]
[1736450396040,0.214229,93358.0,93344.0,0.20525898]
[1736450396563,0.214229,93358.0,93341.0,0.214266]
[1736450396564,8.52e-05,93366.0,93354.0,0.214237]
[1736450396763,0.214213,93365.0,93355.0,0.0214237]
[1736450396988,0.21436146,93365.0,93345.0,0.10429976]
[1736450397191,0.21436146,93365.0,93351.0,0.214244]
[1736450397573,0.21436146,93365.0,93340.0,0.0831]
[1736450397574,0.003,93358.0,93337.0,0.214277]
[1736450397778,0.214233,93356.0,93354.0,0.001]
[1736450397962,0.1331063,93361.0,93339.0,0.10429976]
[1736450398165,0.21425,93349.0,93339.0,0.12435612]
[1736450398422,0.1331063,93350.0,93339.0,0.10429976]
[1736450398674,0.214243,93352.0,93339.0,0.10429976]
[1736450400381,0.214253,93348.0,93339.0,0.10429976]
[1736450400766,0.21426,93345.0,93339.0,0.10429976]
[1736450400971,0.1331063,93350.0,93333.0,0.01079034]
[1736450401223,0.1331063,93350.0,93318.0,0.0473]
[1736450401349,0.1331063,93342.0,93318.0,0.0473]
[1736450401556,0.079,93343.0,93312.0,0.008]
[1736450401557,0.214305,93325.0,93314.0,0.01072007]
[1736450401898,0.214305,93325.0,93304.0,0.23724775]
[1736450401899,0.214319,93319.0,93304.0,0.23724775]
[1736450402152,0.214319,93319.0,93305.0,0.10537125]
[1736450402281,0.214328,93315.0,93305.0,0.10429976]
[1736450402986,0.214318,93319.0,93305.0,0.10444824]
[1736450404086,0.214318,93319.0,93305.0,0.10544824]